[Event "*** SCC Grand Prix: Titled Tuesday Blitz"]
[Site "Chess.com"]
[Date "2020.10.13"]
[Round "3"]
[White "novocane"]
[Black "PattyCastillo"]
[Result "1-0"]
[WhiteElo "2273"]
[BlackElo "2003"]
[TimeControl "180+1"]
[EndTime "10:28:57 PDT"]
[Termination "novocane won on time"]

1. d4 {[%clk 0:02:13.2]} 1... d5 {[%clk 0:02:58.8]} 2. c4 {[%clk 0:02:13.5]}
2... c6 {[%clk 0:02:58.8]} 3. cxd5 {[%clk 0:02:13.8]} 3... cxd5 {[%clk
0:02:58.4]} 4. Bf4 {[%clk 0:02:14.6]} 4... Nf6 {[%clk 0:02:58]} 5. Nc3 {[%clk
0:02:14.5]} 5... e6 {[%clk 0:02:57.3]} 6. e3 {[%clk 0:02:14.3]} 6... Bd6 {[%clk
0:02:57.1]} 7. Bxd6 {[%clk 0:02:14.6]} 7... Qxd6 {[%clk 0:02:58]} 8. f4 {[%clk
0:02:15]} 8... O-O {[%clk 0:02:57.6]} 9. Nf3 {[%clk 0:02:15.1]} 9... a6 {[%clk
0:02:57.1]} 10. Bd3 {[%clk 0:02:15.2]} 10... b5 {[%clk 0:02:54.5]} 11. O-O
{[%clk 0:02:14.8]} 11... Bb7 {[%clk 0:02:55]} 12. Ne5 {[%clk 0:02:14.5]} 12...
Nbd7 {[%clk 0:02:49.9]} 13. Rf3 {[%clk 0:02:14.1]} 13... Rfc8 {[%clk 0:02:47.5]}
14. Rh3 {[%clk 0:02:13.3]} 14... Nf8 {[%clk 0:02:47.3]} 15. Qe1 {[%clk
0:01:59.9]} 15... b4 {[%clk 0:02:42.7]} 16. Na4 {[%clk 0:01:59.3]} 16... Ne4
{[%clk 0:02:38.8]} 17. Bxe4 {[%clk 0:01:54.5]} 17... dxe4 {[%clk 0:02:37.3]} 18.
Nc5 {[%clk 0:01:53.3]} 18... Rxc5 {[%clk 0:02:34.7]} 19. dxc5 {[%clk 0:01:46.3]}
19... Qxc5 {[%clk 0:02:34.6]} 20. Rc1 {[%clk 0:01:45.6]} 20... Qb6 {[%clk
0:02:30.9]} 21. g4 {[%clk 0:01:01.2]} 21... f6 {[%clk 0:02:23.1]} 22. Nc4 {[%clk
0:00:59.8]} 22... Qd8 {[%clk 0:02:15.3]} 23. Qxb4 {[%clk 0:00:55.9]} 23... Bd5
{[%clk 0:02:09]} 24. Qd2 {[%clk 0:00:42.2]} 24... Rc8 {[%clk 0:01:54.3]} 25. b3
{[%clk 0:00:40.5]} 25... Qe7 {[%clk 0:01:43.1]} 26. Rg3 {[%clk 0:00:38.4]} 26...
Nd7 {[%clk 0:01:12.1]} 27. Rg2 {[%clk 0:00:34]} 27... Rb8 {[%clk 0:00:39.2]} 28.
g5 {[%clk 0:00:30.7]} 28... f5 {[%clk 0:00:30.4]} 29. Qd4 {[%clk 0:00:24.7]}
29... Bxc4 {[%clk 0:00:19.7]} 30. Rxc4 {[%clk 0:00:23.2]} 30... Rd8 {[%clk
0:00:16.5]} 31. Rd2 {[%clk 0:00:22.5]} 31... g6 {[%clk 0:00:08.7]} 32. Rc7
{[%clk 0:00:19.9]} 1-0

[Event "*** SCC Grand Prix: Titled Tuesday Blitz"]
[Site "Chess.com"]
[Date "2020.10.13"]
[Round "3"]
[White "tandaleo"]
[Black "salomez"]
[Result "1-0"]
[WhiteElo "2326"]
[BlackElo "2159"]
[TimeControl "180+1"]
[EndTime "10:28:59 PDT"]
[Termination "tandaleo won on time"]

1. d4 {[%clk 0:03:00.9]} 1... Nf6 {[%clk 0:02:59]} 2. c4 {[%clk 0:03:01.2]} 2...
g6 {[%clk 0:02:59.2]} 3. Nc3 {[%clk 0:03:01.4]} 3... d5 {[%clk 0:02:59.8]} 4.
cxd5 {[%clk 0:03:02.3]} 4... Nxd5 {[%clk 0:03:00.3]} 5. Na4 {[%clk 0:03:02.9]}
5... Nf6 {[%clk 0:02:59.5]} 6. Nf3 {[%clk 0:02:58.3]} 6... Bg7 {[%clk
0:02:55.6]} 7. Bf4 {[%clk 0:02:57.6]} 7... O-O {[%clk 0:02:51.7]} 8. e3 {[%clk
0:02:55.2]} 8... b6 {[%clk 0:02:48.6]} 9. h3 {[%clk 0:02:53.3]} 9... Bb7 {[%clk
0:02:48.4]} 10. Be2 {[%clk 0:02:53.6]} 10... Nbd7 {[%clk 0:02:47.7]} 11. O-O
{[%clk 0:02:53.6]} 11... Ne4 {[%clk 0:02:44.4]} 12. Rc1 {[%clk 0:02:42.1]} 12...
c5 {[%clk 0:02:43.4]} 13. dxc5 {[%clk 0:02:31.6]} 13... Ndxc5 {[%clk 0:02:44.3]}
14. Nxc5 {[%clk 0:02:31.7]} 14... Nxc5 {[%clk 0:01:57.8]} 15. b4 {[%clk
0:02:29.7]} 15... Ne6 {[%clk 0:01:37.7]} 16. Bh2 {[%clk 0:02:28.4]} 16... Qxd1
{[%clk 0:01:36.4]} 17. Rfxd1 {[%clk 0:02:28.5]} 17... Rfd8 {[%clk 0:01:34.3]}
18. b5 {[%clk 0:01:50.3]} 18... Nc5 {[%clk 0:01:23.6]} 19. Nd4 {[%clk
0:01:30.6]} 19... Rac8 {[%clk 0:01:14]} 20. Bg4 {[%clk 0:00:41.2]} 20... e6
{[%clk 0:01:05.5]} 21. Nc6 {[%clk 0:00:27.1]} 21... Rxd1+ {[%clk 0:00:23.4]} 22.
Rxd1 {[%clk 0:00:28]} 22... Bxc6 {[%clk 0:00:10.7]} 23. bxc6 {[%clk 0:00:28.9]}
23... Rxc6 {[%clk 0:00:10.1]} 24. Rd8+ {[%clk 0:00:28.9]} 24... Bf8 {[%clk
0:00:10.4]} 25. Bf3 {[%clk 0:00:28.5]} 25... Ne4 {[%clk 0:00:05.8]} 26. Be5
{[%clk 0:00:20.2]} 26... Rc1+ {[%clk 0:00:04.7]} 27. Kh2 {[%clk 0:00:20.7]}
27... f5 {[%clk 0:00:03.3]} 28. Bxe4 {[%clk 0:00:20.6]} 28... fxe4 {[%clk
0:00:03.1]} 29. Bd6 {[%clk 0:00:21.2]} 29... Kf7 {[%clk 0:00:01]} 30. Rxf8+
{[%clk 0:00:21.3]} 30... Kg7 {[%clk 0:00:01.9]} 31. Ra8 {[%clk 0:00:20.9]} 31...
Rc2 {[%clk 0:00:02]} 32. Rxa7+ {[%clk 0:00:19.6]} 32... Kf6 {[%clk 0:00:02.6]}
33. Kg3 {[%clk 0:00:19.8]} 33... h5 {[%clk 0:00:02]} 34. h4 {[%clk 0:00:19.3]}
34... e5 {[%clk 0:00:01.7]} 35. Bc7 {[%clk 0:00:18.4]} 1-0

[Event "*** SCC Grand Prix: Titled Tuesday Blitz"]
[Site "Chess.com"]
[Date "2020.10.13"]
[Round "3"]
[White "Reader777"]
[Black "WildTricks"]
[Result "1-0"]
[WhiteElo "2692"]
[BlackElo "2438"]
[TimeControl "180+1"]
[EndTime "10:29:00 PDT"]
[Termination "Reader777 won on time"]

1. d4 {[%clk 0:03:00.9]} 1... Nf6 {[%clk 0:02:59.3]} 2. c4 {[%clk 0:03:01.2]}
2... e6 {[%clk 0:02:59.4]} 3. g3 {[%clk 0:03:01]} 3... d5 {[%clk 0:02:58.5]} 4.
Bg2 {[%clk 0:03:01]} 4... Be7 {[%clk 0:02:58.5]} 5. Nf3 {[%clk 0:03:01.5]} 5...
O-O {[%clk 0:02:59.1]} 6. O-O {[%clk 0:03:01.8]} 6... dxc4 {[%clk 0:02:59.7]} 7.
Qc2 {[%clk 0:03:01.1]} 7... c6 {[%clk 0:02:59.6]} 8. a4 {[%clk 0:02:59.7]} 8...
b6 {[%clk 0:02:55.5]} 9. Na3 {[%clk 0:02:55.9]} 9... Na6 {[%clk 0:02:50.7]} 10.
Nxc4 {[%clk 0:02:54.7]} 10... Nb4 {[%clk 0:02:50.4]} 11. Qb3 {[%clk 0:02:49.1]}
11... a5 {[%clk 0:02:47.2]} 12. Nfe5 {[%clk 0:02:46.4]} 12... Nfd5 {[%clk
0:02:19.8]} 13. e4 {[%clk 0:02:42.3]} 13... Nf6 {[%clk 0:02:17.8]} 14. Bd2
{[%clk 0:02:35.6]} 14... Ba6 {[%clk 0:02:15.8]} 15. Bxb4 {[%clk 0:02:28.7]}
15... Bxb4 {[%clk 0:02:14.1]} 16. Nxc6 {[%clk 0:02:28.9]} 16... Qc7 {[%clk
0:02:14.3]} 17. d5 {[%clk 0:02:25.8]} 17... Rfd8 {[%clk 0:01:53.9]} 18. Rfd1
{[%clk 0:02:16.2]} 18... Nxe4 {[%clk 0:01:18.4]} 19. Bxe4 {[%clk 0:02:09.6]}
19... exd5 {[%clk 0:01:18.1]} 20. Rxd5 {[%clk 0:02:09.4]} 20... Re8 {[%clk
0:01:18.1]} 21. Re5 {[%clk 0:02:00.4]} 21... Rxe5 {[%clk 0:01:10.8]} 22. N4xe5
{[%clk 0:01:58.4]} 22... Re8 {[%clk 0:01:10.3]} 23. Bd5 {[%clk 0:01:54.9]} 23...
Rxe5 {[%clk 0:01:03.6]} 24. Nxe5 {[%clk 0:01:51.4]} 24... Qxe5 {[%clk
0:01:04.5]} 25. Bxf7+ {[%clk 0:01:50.9]} 25... Kf8 {[%clk 0:01:02.8]} 26. Bc4
{[%clk 0:01:48.7]} 26... Bb7 {[%clk 0:01:00.2]} 27. Qe3 {[%clk 0:01:43.7]} 27...
Qc7 {[%clk 0:00:18.1]} 28. Rd1 {[%clk 0:01:34.6]} 28... Qxc4 {[%clk 0:00:15.3]}
29. Rd8+ {[%clk 0:01:34.1]} 29... Kf7 {[%clk 0:00:15.6]} 30. Rd7+ {[%clk
0:01:34.2]} 30... Kf6 {[%clk 0:00:13.2]} 31. Rxb7 {[%clk 0:01:31.2]} 31... Bc5
{[%clk 0:00:11.9]} 32. Qf3+ {[%clk 0:01:30.4]} 32... Kg6 {[%clk 0:00:11.1]} 33.
Kg2 {[%clk 0:01:22.3]} 33... h5 {[%clk 0:00:10.6]} 34. Rd7 {[%clk 0:01:18.9]}
34... h4 {[%clk 0:00:09.2]} 35. Qd3+ {[%clk 0:01:18.9]} 35... Qxd3 {[%clk
0:00:08.8]} 36. Rxd3 {[%clk 0:01:19.5]} 36... hxg3 {[%clk 0:00:09.7]} 37. hxg3
{[%clk 0:01:19.9]} 37... Kf5 {[%clk 0:00:10.5]} 38. Kf3 {[%clk 0:01:19.6]} 38...
g5 {[%clk 0:00:10.3]} 39. Rd5+ {[%clk 0:01:19.1]} 39... Kf6 {[%clk 0:00:10.5]}
40. Kg4 {[%clk 0:01:18.9]} 40... Ke6 {[%clk 0:00:08.4]} 41. Rxg5 {[%clk
0:01:18.6]} 41... Bxf2 {[%clk 0:00:08.3]} 42. Rb5 {[%clk 0:01:18.2]} 42... Bc5
{[%clk 0:00:07.6]} 43. Rxc5 {[%clk 0:01:16.9]} 43... bxc5 {[%clk 0:00:08.5]} 44.
Kf4 {[%clk 0:01:17.3]} 44... Kd5 {[%clk 0:00:07.5]} 45. g4 {[%clk 0:01:17]}
45... Kc4 {[%clk 0:00:07.9]} 46. g5 {[%clk 0:01:17.3]} 46... Kb3 {[%clk
0:00:06.6]} 47. g6 {[%clk 0:01:17.7]} 47... Kxb2 {[%clk 0:00:06.9]} 48. g7
{[%clk 0:01:18.4]} 48... c4 {[%clk 0:00:07]} 49. g8=Q {[%clk 0:01:18.5]} 49...
c3 {[%clk 0:00:07.5]} 50. Qg7 {[%clk 0:01:14.8]} 50... Kb3 {[%clk 0:00:06.9]}
51. Ke3 {[%clk 0:01:14]} 51... c2 {[%clk 0:00:02.8]} 52. Kd2 {[%clk 0:01:13.9]}
52... Kxa4 {[%clk 0:00:02.8]} 53. Kxc2 {[%clk 0:01:11.4]} 53... Kb4 {[%clk
0:00:03.1]} 54. Qc7 {[%clk 0:01:11.1]} 54... Ka4 {[%clk 0:00:02.2]} 55. Qb6
{[%clk 0:01:10.3]} 1-0

[Event "*** SCC Grand Prix: Titled Tuesday Blitz"]
[Site "Chess.com"]
[Date "2020.10.13"]
[Round "3"]
[White "Sashadav97"]
[Black "alejanchess73"]
[Result "1-0"]
[WhiteElo "2594"]
[BlackElo "2402"]
[TimeControl "180+1"]
[EndTime "10:29:00 PDT"]
[Termination "Sashadav97 won by resignation"]

1. d4 {[%clk 0:03:00.9]} 1... d5 {[%clk 0:02:58.8]} 2. c4 {[%clk 0:02:59.6]}
2... c6 {[%clk 0:02:58.8]} 3. Nf3 {[%clk 0:02:58]} 3... Nf6 {[%clk 0:02:58.9]}
4. Nc3 {[%clk 0:02:58.3]} 4... g6 {[%clk 0:02:59.2]} 5. Bg5 {[%clk 0:02:56.6]}
5... Bg7 {[%clk 0:02:58.7]} 6. e3 {[%clk 0:02:53.9]} 6... O-O {[%clk 0:02:57.9]}
7. Be2 {[%clk 0:02:53.3]} 7... dxc4 {[%clk 0:02:56.9]} 8. Bxc4 {[%clk 0:02:53]}
8... b5 {[%clk 0:02:57.4]} 9. Be2 {[%clk 0:02:48]} 9... a6 {[%clk 0:02:57.8]}
10. O-O {[%clk 0:02:47.2]} 10... Bb7 {[%clk 0:02:57.8]} 11. Rb1 {[%clk 0:02:40]}
11... Nbd7 {[%clk 0:02:55.9]} 12. b4 {[%clk 0:02:40]} 12... a5 {[%clk
0:02:44.6]} 13. a3 {[%clk 0:02:38.7]} 13... axb4 {[%clk 0:02:43.9]} 14. axb4
{[%clk 0:02:39.6]} 14... Nb6 {[%clk 0:02:42.9]} 15. h3 {[%clk 0:02:37.3]} 15...
Na4 {[%clk 0:02:40.8]} 16. Nxa4 {[%clk 0:02:20.5]} 16... Rxa4 {[%clk 0:02:41.7]}
17. Qc2 {[%clk 0:02:14.5]} 17... Nd5 {[%clk 0:02:40.2]} 18. Qc5 {[%clk
0:01:53.1]} 18... Qd6 {[%clk 0:02:33.2]} 19. Rfc1 {[%clk 0:01:42.4]} 19... Qxc5
{[%clk 0:02:32.8]} 20. bxc5 {[%clk 0:01:38.3]} 20... f6 {[%clk 0:02:31.3]} 21.
Bh4 {[%clk 0:01:34.7]} 21... Rfa8 {[%clk 0:02:25.5]} 22. Bg3 {[%clk 0:01:22.9]}
22... Bc8 {[%clk 0:02:15.2]} 23. e4 {[%clk 0:01:18.2]} 23... Nb4 {[%clk
0:02:14.2]} 24. Bd1 {[%clk 0:01:17.9]} 24... Na2 {[%clk 0:02:07.2]} 25. Bxa4
{[%clk 0:01:13]} 25... Nxc1 {[%clk 0:02:06.6]} 26. Bd1 {[%clk 0:01:04]} 26...
Bh6 {[%clk 0:01:34.1]} 27. d5 {[%clk 0:01:02.3]} 27... f5 {[%clk 0:01:29.1]} 28.
Nd4 {[%clk 0:00:54.7]} 28... Nd3 {[%clk 0:01:08.2]} 29. Nxc6 {[%clk 0:00:51.2]}
29... Nxc5 {[%clk 0:01:07.7]} 30. Nxe7+ {[%clk 0:00:48.4]} 30... Kf7 {[%clk
0:01:08]} 31. Nxc8 {[%clk 0:00:48.9]} 31... Rxc8 {[%clk 0:01:06.9]} 32. exf5
{[%clk 0:00:49.5]} 32... gxf5 {[%clk 0:01:04.7]} 33. Rxb5 {[%clk 0:00:49.1]}
33... f4 {[%clk 0:01:04.8]} 34. Bh4 {[%clk 0:00:48.7]} 34... Ne4 {[%clk
0:00:59.7]} 35. Bh5+ {[%clk 0:00:42.7]} 35... Kf8 {[%clk 0:00:54.2]} 36. Rb1
{[%clk 0:00:39]} 36... Bg5 {[%clk 0:00:44]} 37. Bxg5 {[%clk 0:00:36.9]} 37...
Nxg5 {[%clk 0:00:43.9]} 38. Rd1 {[%clk 0:00:35.6]} 38... Rd8 {[%clk 0:00:39.9]}
39. d6 {[%clk 0:00:32.9]} 39... Ne4 {[%clk 0:00:37.9]} 40. d7 {[%clk 0:00:31]}
40... Nf6 {[%clk 0:00:38.1]} 41. Bf3 {[%clk 0:00:28]} 41... Rxd7 {[%clk
0:00:35.2]} 42. Ra1 {[%clk 0:00:28.1]} 42... Kg7 {[%clk 0:00:31.4]} 43. Ra4
{[%clk 0:00:24.1]} 43... Nd5 {[%clk 0:00:24.5]} 44. Bxd5 {[%clk 0:00:21.7]}
44... Rxd5 {[%clk 0:00:24.4]} 45. Rxf4 {[%clk 0:00:22.2]} 45... Kg6 {[%clk
0:00:24.9]} 46. g4 {[%clk 0:00:21.3]} 46... Rd4 {[%clk 0:00:23.7]} 47. Rxd4
{[%clk 0:00:20.7]} 1-0

[Event "*** SCC Grand Prix: Titled Tuesday Blitz"]
[Site "Chess.com"]
[Date "2020.10.13"]
[Round "3"]
[White "Alexandercs432"]
[Black "KatarinaOstojic"]
[Result "0-1"]
[WhiteElo "2170"]
[BlackElo "2337"]
[TimeControl "180+1"]
[EndTime "10:29:02 PDT"]
[Termination "KatarinaOstojic won on time"]

1. e4 {[%clk 0:02:59]} 1... c5 {[%clk 0:02:59.8]} 2. Nf3 {[%clk 0:02:59.1]} 2...
d6 {[%clk 0:02:59.9]} 3. d4 {[%clk 0:02:58.7]} 3... cxd4 {[%clk 0:03:00.8]} 4.
Nxd4 {[%clk 0:02:59.6]} 4... Nf6 {[%clk 0:03:01.4]} 5. Nc3 {[%clk 0:02:59.1]}
5... a6 {[%clk 0:03:01.8]} 6. Be3 {[%clk 0:02:59]} 6... e5 {[%clk 0:03:01.4]} 7.
Nb3 {[%clk 0:02:59.1]} 7... Be6 {[%clk 0:03:02]} 8. f3 {[%clk 0:02:59.4]} 8...
Be7 {[%clk 0:03:02.6]} 9. Qd2 {[%clk 0:02:59.7]} 9... O-O {[%clk 0:03:03.2]} 10.
O-O-O {[%clk 0:02:59.8]} 10... a5 {[%clk 0:03:03.8]} 11. Bb5 {[%clk 0:02:57.4]}
11... Nc6 {[%clk 0:03:01.3]} 12. g4 {[%clk 0:02:43.6]} 12... Qc7 {[%clk
0:02:52.6]} 13. g5 {[%clk 0:02:38.5]} 13... Nh5 {[%clk 0:02:52.2]} 14. Kb1
{[%clk 0:02:21.8]} 14... g6 {[%clk 0:02:37.4]} 15. Nd5 {[%clk 0:01:41]} 15...
Bxd5 {[%clk 0:02:36.7]} 16. exd5 {[%clk 0:01:41.2]} 16... Nb8 {[%clk 0:02:27.1]}
17. a4 {[%clk 0:01:27.3]} 17... Nd7 {[%clk 0:02:26.9]} 18. Qf2 {[%clk
0:01:25.2]} 18... Rfc8 {[%clk 0:02:14.6]} 19. Rd2 {[%clk 0:01:12.5]} 19... Ng7
{[%clk 0:02:09.1]} 20. Bd3 {[%clk 0:00:57.1]} 20... b6 {[%clk 0:01:58.6]} 21. h4
{[%clk 0:00:53.7]} 21... Nh5 {[%clk 0:01:57.9]} 22. Bb5 {[%clk 0:00:42.6]} 22...
Nc5 {[%clk 0:01:57.6]} 23. Nxc5 {[%clk 0:00:35.4]} 23... bxc5 {[%clk 0:01:58.5]}
24. c4 {[%clk 0:00:34.2]} 24... f5 {[%clk 0:01:53.3]} 25. gxf6 {[%clk
0:00:25.5]} 25... Bxf6 {[%clk 0:01:53.3]} 26. Bg5 {[%clk 0:00:24.5]} 26... Qe7
{[%clk 0:01:49.7]} 27. Qe3 {[%clk 0:00:20.1]} 27... Rf8 {[%clk 0:01:41.2]} 28.
Rg2 {[%clk 0:00:16.2]} 28... Ra7 {[%clk 0:01:20.8]} 29. Rhg1 {[%clk 0:00:16]}
29... Qd8 {[%clk 0:01:17.1]} 30. Qe4 {[%clk 0:00:12.6]} 30... Bxg5 {[%clk
0:01:07.5]} 31. Rxg5 {[%clk 0:00:12.2]} 31... Rg7 {[%clk 0:01:05.3]} 32. Ka2
{[%clk 0:00:10.6]} 32... Rf4 {[%clk 0:01:05]} 33. Qe3 {[%clk 0:00:08.7]} 33...
Rxh4 {[%clk 0:01:04.2]} 34. Qe2 {[%clk 0:00:07.7]} 34... Nf4 {[%clk 0:01:04.1]}
35. Qc2 {[%clk 0:00:07.5]} 35... Nh3 {[%clk 0:01:03.2]} 36. R5g3 {[%clk
0:00:03.9]} 36... Nxg1 {[%clk 0:01:02.5]} 37. Rxg1 {[%clk 0:00:04.8]} 37... Qf6
{[%clk 0:01:02.6]} 38. Bd7 {[%clk 0:00:04.3]} 38... Rxd7 {[%clk 0:01:01.7]} 39.
Qb3 {[%clk 0:00:03.9]} 39... Rh3 {[%clk 0:00:56.8]} 40. Qb8+ {[%clk 0:00:04.8]}
40... Kg7 {[%clk 0:00:56.5]} 41. f4 {[%clk 0:00:04.7]} 41... exf4 {[%clk
0:00:55.3]} 42. Qa8 {[%clk 0:00:04.5]} 42... Qd8 {[%clk 0:00:53.8]} 43. Qa6
{[%clk 0:00:03.9]} 43... f3 {[%clk 0:00:52.5]} 44. Qb5 {[%clk 0:00:04.8]} 44...
f2 {[%clk 0:00:51.4]} 45. Rf1 {[%clk 0:00:05.2]} 45... Rf3 {[%clk 0:00:52]} 46.
Qb6 {[%clk 0:00:03.3]} 46... Qxb6 {[%clk 0:00:51.6]} 0-1

[Event "*** SCC Grand Prix: Titled Tuesday Blitz"]
[Site "Chess.com"]
[Date "2020.10.13"]
[Round "3"]
[White "TigrVShlyape"]
[Black "LionTheLeon_06"]
[Result "1-0"]
[WhiteElo "2843"]
[BlackElo "2634"]
[TimeControl "180+1"]
[EndTime "10:29:04 PDT"]
[Termination "TigrVShlyape won by checkmate"]

1. d4 {[%clk 0:03:00.9]} 1... Nf6 {[%clk 0:02:59.6]} 2. Nf3 {[%clk 0:02:58.8]}
2... e6 {[%clk 0:02:58.7]} 3. Bf4 {[%clk 0:02:54.3]} 3... b6 {[%clk 0:02:58.5]}
4. e3 {[%clk 0:02:53.2]} 4... Bb7 {[%clk 0:02:58.7]} 5. Nbd2 {[%clk 0:02:50.6]}
5... c5 {[%clk 0:02:57.4]} 6. h3 {[%clk 0:02:50]} 6... cxd4 {[%clk 0:02:56.7]}
7. exd4 {[%clk 0:02:49.5]} 7... Be7 {[%clk 0:02:56.9]} 8. a4 {[%clk 0:02:48.9]}
8... O-O {[%clk 0:02:55.9]} 9. Bd3 {[%clk 0:02:49]} 9... a6 {[%clk 0:02:56.1]}
10. O-O {[%clk 0:02:48.2]} 10... d6 {[%clk 0:02:56.6]} 11. Re1 {[%clk
0:02:47.1]} 11... Nbd7 {[%clk 0:02:56.7]} 12. Bh2 {[%clk 0:02:47]} 12... Re8
{[%clk 0:02:56.9]} 13. a5 {[%clk 0:02:47]} 13... b5 {[%clk 0:02:53.5]} 14. c4
{[%clk 0:02:47.5]} 14... bxc4 {[%clk 0:02:52.8]} 15. Nxc4 {[%clk 0:02:47.7]}
15... Qb8 {[%clk 0:02:46.6]} 16. Ra3 {[%clk 0:02:45.4]} 16... Bxf3 {[%clk
0:02:16.2]} 17. Qxf3 {[%clk 0:02:37.8]} 17... Nd5 {[%clk 0:02:16.2]} 18. Qd1
{[%clk 0:01:56.2]} 18... Qc7 {[%clk 0:02:06.4]} 19. Qb1 {[%clk 0:01:53.9]} 19...
N7f6 {[%clk 0:01:59.5]} 20. Rc1 {[%clk 0:01:52.9]} 20... Qd7 {[%clk 0:01:58.9]}
21. b4 {[%clk 0:01:31.8]} 21... Reb8 {[%clk 0:01:52.3]} 22. Rb3 {[%clk
0:01:31.7]} 22... Ra7 {[%clk 0:01:46.1]} 23. Nd2 {[%clk 0:01:16.1]} 23... g6
{[%clk 0:01:34.5]} 24. b5 {[%clk 0:01:09.7]} 24... axb5 {[%clk 0:01:27.8]} 25.
Bxb5 {[%clk 0:01:06.3]} 25... Qd8 {[%clk 0:01:23.5]} 26. Nc4 {[%clk 0:01:04.8]}
26... h5 {[%clk 0:00:39.5]} 27. Bg3 {[%clk 0:01:02.1]} 27... Kg7 {[%clk
0:00:33]} 28. Bc6 {[%clk 0:00:54.4]} 28... Rxb3 {[%clk 0:00:21.3]} 29. Qxb3
{[%clk 0:00:53.5]} 29... Ne4 {[%clk 0:00:19.2]} 30. Bh2 {[%clk 0:00:35.4]} 30...
Rxa5 {[%clk 0:00:18.9]} 31. Nxa5 {[%clk 0:00:34.3]} 31... Qxa5 {[%clk
0:00:19.8]} 32. Bxd5 {[%clk 0:00:32.7]} 32... exd5 {[%clk 0:00:20.7]} 33. Rd1
{[%clk 0:00:27.3]} 33... h4 {[%clk 0:00:20.2]} 34. Bf4 {[%clk 0:00:26.6]} 34...
Bf6 {[%clk 0:00:19.9]} 35. Be3 {[%clk 0:00:26.6]} 35... Qa8 {[%clk 0:00:14.3]}
36. Rb1 {[%clk 0:00:25.8]} 36... Qa5 {[%clk 0:00:13.4]} 37. Qc2 {[%clk
0:00:24.7]} 37... g5 {[%clk 0:00:13.5]} 38. Qc1 {[%clk 0:00:23.9]} 38... Qa2
{[%clk 0:00:11.7]} 39. Rb7 {[%clk 0:00:23.1]} 39... Kg6 {[%clk 0:00:11.3]} 40.
Qc7 {[%clk 0:00:22.5]} 40... Qa1+ {[%clk 0:00:09.1]} 41. Kh2 {[%clk 0:00:22.7]}
41... Qf1 {[%clk 0:00:03.4]} 42. Qxf7+ {[%clk 0:00:22.5]} 42... Kh6 {[%clk
0:00:03.4]} 43. Qh7# {[%clk 0:00:22.4]} 1-0

[Event "*** SCC Grand Prix: Titled Tuesday Blitz"]
[Site "Chess.com"]
[Date "2020.10.13"]
[Round "3"]
[White "BursaBBSatranc"]
[Black "ExtremeLearner"]
[Result "1-0"]
[WhiteElo "2605"]
[BlackElo "2407"]
[TimeControl "180+1"]
[EndTime "10:29:05 PDT"]
[Termination "BursaBBSatranc won by resignation"]

1. d4 {[%clk 0:03:00.9]} 1... Nf6 {[%clk 0:02:59.2]} 2. Bf4 {[%clk 0:03:01.1]}
2... g6 {[%clk 0:02:57]} 3. e3 {[%clk 0:03:01.3]} 3... Bg7 {[%clk 0:02:57.1]} 4.
Nf3 {[%clk 0:03:01.9]} 4... O-O {[%clk 0:02:55.5]} 5. h3 {[%clk 0:03:01.9]} 5...
d6 {[%clk 0:02:54.4]} 6. Be2 {[%clk 0:03:00.6]} 6... Nbd7 {[%clk 0:02:49.2]} 7.
O-O {[%clk 0:03:00.5]} 7... b6 {[%clk 0:02:44.9]} 8. c3 {[%clk 0:02:56.3]} 8...
Bb7 {[%clk 0:02:41.8]} 9. Nbd2 {[%clk 0:02:56.5]} 9... Re8 {[%clk 0:02:31.6]}
10. a4 {[%clk 0:02:53.5]} 10... a6 {[%clk 0:01:03.7]} 11. Qb3 {[%clk 0:02:51.6]}
11... e5 {[%clk 0:01:00.2]} 12. Bh2 {[%clk 0:02:50.9]} 12... e4 {[%clk
0:00:54.5]} 13. Ne1 {[%clk 0:02:46.6]} 13... h5 {[%clk 0:00:47.8]} 14. a5 {[%clk
0:02:42.1]} 14... b5 {[%clk 0:00:47.5]} 15. c4 {[%clk 0:02:42.4]} 15... c6
{[%clk 0:00:47]} 16. Bxd6 {[%clk 0:02:39.8]} 16... Nf8 {[%clk 0:00:46.5]} 17.
Bh2 {[%clk 0:02:38.5]} 17... Ne6 {[%clk 0:00:46.2]} 18. Qc2 {[%clk 0:02:16.4]}
18... Ng5 {[%clk 0:00:38.6]} 19. h4 {[%clk 0:02:05.6]} 19... Ngh7 {[%clk
0:00:36.2]} 20. cxb5 {[%clk 0:02:05.1]} 20... cxb5 {[%clk 0:00:35.3]} 21. Qc7
{[%clk 0:02:05.2]} 21... Qxc7 {[%clk 0:00:29.7]} 22. Bxc7 {[%clk 0:02:06.1]}
22... Rac8 {[%clk 0:00:29.4]} 23. Be5 {[%clk 0:02:04.5]} 23... Nd5 {[%clk
0:00:26.3]} 24. Bxg7 {[%clk 0:02:03.1]} 24... Kxg7 {[%clk 0:00:27.2]} 25. Nb3
{[%clk 0:02:01.3]} 25... Rc6 {[%clk 0:00:18.8]} 26. Nc5 {[%clk 0:01:58.1]} 26...
Bc8 {[%clk 0:00:18.2]} 27. Nc2 {[%clk 0:01:49.4]} 27... Nhf6 {[%clk 0:00:11.6]}
28. Rac1 {[%clk 0:01:36]} 28... Nd7 {[%clk 0:00:11.8]} 29. b4 {[%clk 0:01:12.3]}
29... Nxc5 {[%clk 0:00:09.3]} 30. dxc5 {[%clk 0:01:09.5]} 30... Rc7 {[%clk
0:00:08.2]} 31. Nd4 {[%clk 0:01:07.6]} 31... Nxb4 {[%clk 0:00:07.3]} 32. Rfd1
{[%clk 0:01:01.1]} 32... Bg4 {[%clk 0:00:07]} 33. f3 {[%clk 0:00:59.3]} 33...
exf3 {[%clk 0:00:06.2]} 34. gxf3 {[%clk 0:01:00.2]} 34... Bd7 {[%clk 0:00:04.6]}
35. Kf2 {[%clk 0:01:00]} 35... Nc6 {[%clk 0:00:05]} 36. Nxc6 {[%clk 0:00:53.8]}
36... Bxc6 {[%clk 0:00:03.1]} 37. Rd6 {[%clk 0:00:51.8]} 37... Ba8 {[%clk
0:00:02.5]} 38. Rxa6 {[%clk 0:00:50.9]} 38... Bb7 {[%clk 0:00:02.9]} 39. Ra7
{[%clk 0:00:50.7]} 39... Rce7 {[%clk 0:00:03]} 40. Bxb5 {[%clk 0:00:46.6]} 40...
Bc8 {[%clk 0:00:01.5]} 41. Rxe7 {[%clk 0:00:45.3]} 41... Rxe7 {[%clk 0:00:01.8]}
42. a6 {[%clk 0:00:42.8]} 42... Ra7 {[%clk 0:00:02.7]} 43. Rd1 {[%clk
0:00:39.2]} 43... Bxa6 {[%clk 0:00:03.2]} 44. Ra1 {[%clk 0:00:38.9]} 44... Rb7
{[%clk 0:00:03.3]} 45. Bxa6 {[%clk 0:00:38.6]} 45... Rb2+ {[%clk 0:00:04.2]} 46.
Kg3 {[%clk 0:00:38.9]} 1-0